fUSD/lending_fUSD_20260309
["ID","MTS","AMOUNT","RATE_DAILY","PERIOD"]
[408054394,1773078633006,-620.01937344,0.000198,2]
[408054395,1773078633019,-1379.98062656,0.000198,2]
[408054396,1773078633028,-2092.63300864,0.000198,2]
[408054397,1773078633041,-711.828,0.000198,2]
[408054398,1773078633060,-17365.53899136,0.000198,2]
[408054399,1773078633069,-324.5716717,0.00019807,2]
[408054400,1773078633078,-324.5716717,0.00019826,2]
[408054401,1773078633087,-3085.02,0.00019833,2]
[408054402,1773078633096,-173.225,0.00019833,2]
[408054403,1773078633105,-536.0,0.00019837,2]
[408054404,1773078633115,-500.0,0.00019837,2]
[408054405,1773078633124,-751.0,0.00019837,2]
[408054406,1773078633133,-642.0,0.00019837,2]
[408054407,1773078633142,-500.0,0.00019837,2]
[408054408,1773078633151,-500.0,0.00019837,2]
[408054409,1773078633161,-500.0,0.00019837,2]
[408054410,1773078633170,-324.5716717,0.00019844,2]
[408054411,1773078633179,-324.5716717,0.00019863,2]
[408054412,1773078633188,-324.5716717,0.00019881,2]
[408054413,1773078633197,-536.0,0.00019892,2]
[408054414,1773078633207,-500.0,0.00019892,2]
[408054415,1773078633216,-751.0,0.00019892,2]
[408054416,1773078633226,-642.0,0.00019892,2]
[408054417,1773078633235,-500.0,0.00019892,2]
[408054418,1773078633244,-500.0,0.00019892,2]
[408054419,1773078633253,-500.0,0.00019892,2]
[408054420,1773078633263,-2500.0,0.00019899,2]
[408054421,1773078633272,-294.40983498,0.00019899,2]
[408054422,1773078633282,-796.38186967,0.00019899,2]
[408054423,1773078633291,-187.88746116,0.00019899,2]
[408054424,1773078633301,-346.80821095,0.00019899,2]
[408054425,1773078633310,-282.73497124,0.00019899,2]
[408054426,1773078633320,-344.48652071,0.00019899,2]
[408054427,1773078633330,-356.85218703,0.00019899,2]
[408054428,1773078633340,-500.0,0.00019899,2]
[408054429,1773078633349,-500.0,0.00019899,2]
[408054430,1773078633359,-500.0,0.00019899,2]
[408054431,1773078633368,-500.0,0.00019899,2]
[408054432,1773078633378,-326.75535759,0.00019899,2]
[408054433,1773078633388,-258.52837306,0.00019899,2]
[408054434,1773078633398,-796.38186967,0.00019899,2]
[408054435,1773078633408,-294.40983493,0.00019899,2]
[408054436,1773078633419,-796.38186967,0.00019899,2]
[408054437,1773078633429,-294.40983493,0.00019899,2]
[408054438,1773078633440,-796.38186967,0.00019899,2]
[408054439,1773078633450,-294.40983493,0.00019899,2]
[408054440,1773078633460,-796.38186967,0.00019899,2]
[408054441,1773078633470,-796.38186967,0.000199,2]
[408054442,1773078633479,-294.40983493,0.000199,2]
[408054443,1773078633489,-796.38186967,0.000199,2]
[408054444,1773078633498,-294.40983493,0.000199,2]
[408054445,1773078633508,-294.40983493,0.000199,2]
[408054446,1773078633517,-518.79649442,0.000199,2]
[408054447,1773078633528,-5000.0,0.000199,2]
[408054448,1773078633538,-324.5716717,0.000199,2]
[408054449,1773078633551,-18771.00498695,0.000199,2]
[408054450,1773078633561,-294.40983493,0.000199,2]
[408054451,1773078633570,-536.0,0.00019947,2]
[408054452,1773078633580,-500.0,0.00019947,2]
[408054453,1773078633589,-751.0,0.00019947,2]
[408054454,1773078633599,-642.0,0.00019947,2]
[408054455,1773078633609,-500.0,0.00019947,2]
[408054456,1773078633618,-500.0,0.00019947,2]
[408054457,1773078633628,-500.0,0.00019947,2]
[408054458,1773078633637,-520.77143184,0.00019963,2]
[408054459,1773078633649,-561.36,0.00019963,2]
[408054460,1773078633661,-2422.86856816,0.00019963,2]
[408054461,1773078633671,-1342.0,0.00019963,2]
[408054462,1773078633680,-29.7426035,0.00019963,2]
[408054463,1773078633691,-589.2573965,0.00019963,2]
[408054464,1773078633701,-526.08141374,0.00019963,2]
[408054465,1773078633712,-437.436765,0.00019963,2]
[408054466,1773078633732,-78.48182126,0.00019963,2]
[408054467,1773078633741,-990.49999041,0.00019963,2]
[408054468,1773078633754,-288.50000959,0.00019963,2]
[408054469,1773078633763,-323.92884784,0.00019963,2]
[408054482,1773078637513,-150.0,0.000194,2]
[408054483,1773078637523,-150.0,0.000194,2]
[408054484,1773078637532,-576.95562485,0.000199,2]
[408054485,1773078637617,-219.42624482,0.000199,2]
[408054486,1773078637627,-922.0,0.00019963,2]
[408054487,1773078637636,-2461.0,0.00019963,2]
[408054488,1773078637646,-3749.0,0.00019963,2]
[408054489,1773078637655,-153.45374546,0.00019979,2]
[408054490,1773078637665,-303.27273692,0.00019989,2]
[408054491,1773078637674,-151.0,0.00019996,2]
[408054492,1773078637684,-185.52323359,0.00019997,2]
[408054493,1773078637693,-221.58,0.00019998,2]
[408054494,1773078637703,-300.0,0.00019999,2]
[408054495,1773078637713,-58935.48693063,0.00019999,2]
[408054496,1773078637724,-1020.29583807,0.00019999,2]
[408054497,1773078637739,-347.32,0.00019999,2]
[408054498,1773078637751,-15713.42564278,0.00019999,2]
[408054503,1773078639503,-2522.48116495,0.00019999,2]
[408054504,1773078640690,-88138.01642847,0.00019999,2]
[408054505,1773078640709,-2971.744106,0.00019999,2]
[408054506,1773078640725,-500.0,0.00019999,2]
[408054507,1773078640739,-500.0,0.00019999,2]
[408054508,1773078640759,-11713.5860211,0.00019999,2]
[408054509,1773078640771,-500.0,0.00019999,2]
[408054510,1773078640796,-500.0,0.00019999,2]
[408054511,1773078640811,-500.0,0.00019999,2]
[408054512,1773078640825,-500.0,0.00019999,2]
[408054513,1773078640843,-500.0,0.00019999,2]
[408054514,1773078640859,-215344.0034342,0.00019999,2]
[408054515,1773078640874,-500.0,0.00019999,2]
[408054516,1773078640890,-500.0,0.00019999,2]
[408054517,1773078640905,-502.83202664,0.00019999,2]
[408054518,1773078640922,-50722.7549489,0.00019999,2]
[408054519,1773078640937,-1647.0,0.0002,2]
[408054520,1773078640953,-1520.0,0.0002,2]
[408054521,1773078640968,-455738.98796433,0.0002,2]
[408054522,1773078640987,-694682.05807554,0.0002,2]
[408054523,1773078641533,-405.09182779,0.000199,2]
[408054543,1773078645292,-391.29004188,0.000199,2]
[408054544,1773078645665,-796.38186967,0.000199,2]
[408054545,1773078645684,-4810.32808845,0.0002,2]
[408054546,1773078645696,-1325.556643,0.0002,2]
[408054547,1773078645708,-226588.8541083,0.0002,2]
[408054548,1773078645735,-17109.99999999,0.0002,2]
[408054549,1773078645747,-7488.89838551,0.0002,2]
[408054550,1773078645756,-4491.65549633,0.0002,2]
[408054551,1773078645767,-49839.11055207,0.0002,2]
[408054552,1773078748198,602.91283418,9.158e-05,2]
[408054553,1773078763162,938.01507143,9.158e-05,2]
[408054554,1773078769141,500.0,9.158e-05,2]
[408054555,1773078771623,500.0,9.158e-05,2]
[408054556,1773078773023,500.0,9.158e-05,2]
[408054557,1773078774474,500.0,9.158e-05,2]
[408054558,1773078776957,575.34624251,9.158e-05,2]
[408054559,1773078777169,554.13305923,9.158e-05,2]
[408054560,1773078779088,329.60279265,9.158e-05,2]
[408054561,1773078779121,170.39720735,9.158e-05,2]
[408054562,1773078779914,500.0,9.158e-05,2]
[408054563,1773078780451,862.97844485,9.158e-05,2]
[408054564,1773078781542,500.0,9.158e-05,2]
[408054565,1773078781665,500.0,9.158e-05,2]
[408054566,1773078781713,500.0,9.158e-05,2]
[408054567,1773078782096,700.0,9.158e-05,2]
[408054568,1773078782382,500.0,9.158e-05,2]
[408054569,1773078782620,500.0,9.158e-05,2]
[408054570,1773078782723,266.6343478,9.158e-05,2]
[408054571,1773078782746,433.3656522,9.158e-05,2]
[408054572,1773078783318,500.0,9.158e-05,2]
[408054573,1773078785566,500.0,9.158e-05,2]
[408054574,1773078785596,500.0,9.158e-05,2]
[408054575,1773078785802,841.19922527,9.158e-05,2]
[408054576,1773078786137,500.0,9.158e-05,2]
[408054577,1773078786453,827.47166697,9.158e-05,2]
[408054578,1773078787045,700.0,9.158e-05,2]
[408054579,1773078787269,197.97345556,9.158e-05,2]
[408054580,1773078787290,302.02654444,9.158e-05,2]
[408054581,1773078787904,700.0,9.158e-05,2]
[408054582,1773078789041,700.0,9.158e-05,2]
[408054583,1773078789968,500.0,9.158e-05,2]
[408054584,1773078791034,700.0,9.158e-05,2]
[408054585,1773078791065,500.0,9.158e-05,2]
[408054586,1773078791201,500.0,9.158e-05,2]
[408054587,1773078791564,700.0,9.158e-05,2]
[408054588,1773078791593,397.98345556,9.158e-05,2]
[408054589,1773078791614,102.01654444,9.158e-05,2]
[408054590,1773078791778,500.0,9.158e-05,2]
[408054591,1773078792252,500.0,9.158e-05,2]
[408054592,1773078792405,700.0,9.158e-05,2]
[408054593,1773078792833,500.0,9.158e-05,2]
[408054594,1773078793520,700.0,9.158e-05,2]
[408054595,1773078794600,700.0,9.158e-05,2]
[408054596,1773078796867,700.0,9.158e-05,2]
[408054597,1773078798026,597.99345556,9.158e-05,2]
[408054598,1773078798047,102.00654444,9.158e-05,2]
[408054599,1773078798801,1021.95731226,9.158e-05,2]
[408054600,1773078801729,500.0,9.158e-05,2]
[408054601,1773078803121,675.54622457,9.158e-05,2]
[408054602,1773078812487,180.9,0.00014,2]
[408054603,1773078828048,-300.0,0.00014999,2]
[408054604,1773078828078,-500.0,0.00014999,2]
[408054605,1773078828105,-159.0,0.00014999,2]
[408054606,1773078839886,500.0,0.00015,30]
[408054607,1773078842862,300.0,0.00014999,2]
[408054608,1773078862367,150.0,0.00014999,2]
[408054609,1773078888763,500.0,9.158e-05,2]
[408054610,1773078890432,500.0,9.158e-05,2]
[408054611,1773078890974,500.0,9.158e-05,2]
[408054612,1773078891917,500.0,9.158e-05,2]
[408054613,1773078893041,500.0,9.158e-05,2]
[408054614,1773078893575,500.0,9.158e-05,2]
[408054615,1773078894334,500.0,9.158e-05,2]
[408054616,1773078894425,500.0,9.158e-05,2]
[408054617,1773078895098,500.0,9.158e-05,2]
[408054618,1773078896661,500.0,9.158e-05,2]
[408054619,1773078896688,690.50896811,9.158e-05,2]
[408054620,1773078896730,500.0,9.158e-05,2]
[408054621,1773078897786,500.0,9.158e-05,2]
[408054622,1773078899380,441.50103189,9.158e-05,2]
[408054623,1773078899404,414.15637186,9.158e-05,2]
[408054624,1773078901186,1200.0,0.00014999,2]
[408054625,1773078913296,500.0,9.158e-05,2]
[408054626,1773078955010,9292.0,0.0002,120]
[408054627,1773078961208,300.0,0.00014999,2]
[408054628,1773078980772,215.89,0.00015,2]
[408054629,1773078994194,500.0,0.0001,2]
[408054630,1773078995092,500.0,0.0001,2]
[408054631,1773078995836,500.0,0.0001,2]
[408054632,1773078997262,500.0,0.0001,2]
[408054633,1773078997326,500.0,0.0001,2]
[408054634,1773078997439,500.0,0.0001,2]
[408054635,1773078997930,500.0,0.0001,2]
[408054636,1773078998491,500.0,0.0001,2]
[408054637,1773078999353,813.37257424,0.0001,2]
[408054638,1773079023419,150.0,0.00014999,2]
[408054639,1773079040876,500.0,0.0001,2]
[408054640,1773079041197,500.0,0.0001,2]
[408054641,1773079041710,500.0,0.0001,2]
[408054642,1773079041793,500.0,0.0001,2]
[408054643,1773079042256,406.5910539,0.0001,2]
[408054644,1773079042278,93.4089461,0.0001,2]
[408054645,1773079042308,500.0,0.0001,2]
[408054646,1773079042334,500.0,0.0001,2]
[408054647,1773079042637,500.0,0.0001,2]
[408054648,1773079042867,500.0,0.0001,2]
[408054649,1773079042894,500.0,0.0001,2]
[408054650,1773079043431,500.0,0.0001,2]
[408054651,1773079044245,500.0,0.0001,2]
[408054652,1773079048443,500.0,0.0001,2]
[408054653,1773079049097,500.0,0.0001,2]
[408054654,1773079049684,500.0,0.0001,2]
[408054655,1773079050143,500.0,0.0001,2]
[408054656,1773079050351,500.0,0.0001,2]
[408054657,1773079051943,500.0,0.0001,2]
[408054658,1773079051974,500.0,0.0001,2]
[408054659,1773079052032,500.0,0.0001,2]
[408054660,1773079052085,500.0,0.0001,2]
[408054661,1773079052120,500.0,0.0001,2]
[408054662,1773079052557,500.0,0.0001,2]
[408054663,1773079052821,500.0,0.0001,2]
[408054664,1773079053383,406.6010539,0.0001,2]
[408054665,1773079053407,93.3989461,0.0001,2]
[408054666,1773079053870,500.0,0.0001,2]
[408054667,1773079053961,500.0,0.0001,2]
[408054668,1773079054392,500.0,0.0001,2]
[408054669,1773079054507,500.0,0.0001,2]
[408054670,1773079054962,500.0,0.0001,2]
[408054671,1773079055735,500.0,0.0001,2]
[408054672,1773079056328,500.0,0.0001,2]
[408054673,1773079056870,800.0,0.0001,2]
[408054674,1773079081246,300.0,0.00014999,2]
[408054675,1773079142145,300.0,0.00014999,2]
[408054676,1773079167000,1032.70793927,0.000108,2]
[408054677,1773079194342,3973.90311463,0.0001199,2]
[408054678,1773079194364,10000.01,0.0001199,2]
[408054679,1773079194392,38703.87210961,0.0001199,2]
[408054680,1773079201454,17317.36711781,8e-05,2]
[408054682,1773079213406,-300.0,0.00014999,2]
[408054683,1773079213434,-300.0,0.00014999,2]
[408054684,1773079213462,-300.0,0.00014999,2]
[408054685,1773079213490,-1200.0,0.00014999,2]
[408054686,1773079213517,-274.0,0.00014999,2]
[408054688,1773079252002,396.38607569,0.00014999,2]
[408054689,1773079253541,317.10886055,0.00014999,2]
[408054690,1773079254545,253.68708844,0.00014999,2]
[408054691,1773079255491,202.94967075,0.00014999,2]
[408054692,1773079256632,162.3597366,0.00014999,2]
[408054693,1773079257549,151.0,0.00014999,2]
[408054694,1773079321234,300.0,0.00014999,2]
[408054695,1773079355425,3468.51856797,9.5e-05,3]
[408054696,1773079355450,10000.01,9.5e-05,3]
[408054697,1773079355474,5000.01,9.5e-05,3]
[408054698,1773079355497,5000.01,9.5e-05,3]
[408054699,1773079355522,15169.69686735,9.5e-05,3]
[408054700,1773079357013,500.0,0.0001,2]
[408054701,1773079363548,500.0,0.0001,2]
[408054702,1773079365025,200.0,0.000128,2]
[408054703,1773079365070,785.15693744,0.0001,2]
[408054704,1773079365431,500.0,0.0001,2]
[408054705,1773079367312,520.56214502,0.0001,2]
[408054706,1773079368174,500.0,0.0001,2]
[408054707,1773079368895,500.0,0.0001,2]
[408054708,1773079369164,750.0,0.0001,2]
[408054709,1773079369505,244.29091754,0.0001,2]
[408054710,1773079369526,394.77487284,0.0001,2]
[408054711,1773079381239,300.0,0.00014999,2]
[408054712,1773079387152,150.0,0.00014999,2]
[408054713,1773079387184,161.0,0.00015,2]
[408054714,1773079387483,151.0,0.00015,2]
[408054715,1773079387713,167.03443452,0.00015,2]
[408054716,1773079387740,2325.872557,7.945e-05,2]
[408054717,1773079406469,197.13285115,0.0001,2]
[408054718,1773079446990,162.0,0.00015,2]
[408054719,1773079459380,830.87,8.746e-05,2]
[408054720,1773079459667,830.87,9.207e-05,2]
[408054721,1773079459871,830.87,9.667e-05,2]
[408054722,1773079460121,830.87,0.00010127,2]
[408054723,1773079460363,830.87,0.00010588,2]
[408054724,1773079460660,830.87,0.00011048,2]
[408054725,1773079460893,830.87,0.00011508,2]
[408054726,1773079461215,569.88015733,0.00011969,2]
[408054727,1773079461239,260.98984267,0.00011969,2]
[408054728,1773079461484,830.87,0.00012429,2]
[408054729,1773079462176,830.87,0.00012889,2]
[408054730,1773079462417,830.87,0.0001335,2]
[408054731,1773079462617,830.87,0.0001381,2]
[408054732,1773079463051,830.87,0.0001427,2]
[408054733,1773079463275,830.87,0.00014731,2]
[408054734,1773079501182,1200.0,0.00014999,2]
[408054735,1773079505377,151.0,0.00015,2]
[408054736,1773079509410,163.0,0.00015,2]
[408054737,1773079550598,151.0,0.00015,2]
[408054738,1773079551663,196.43894641,0.00015,2]
[408054739,1773079562335,300.0,0.00014999,2]
[408054740,1773079563114,242.0,0.00014999,2]
[408054741,1773079565649,150.0,0.00014999,2]
[408054742,1773079591554,172.76,0.00014,2]
[408054743,1773079621558,300.0,0.00014999,2]
[408054744,1773079637702,637.93300858,0.0001,2]
[408054745,1773079637983,500.0,0.0001,2]
[408054746,1773079638553,589.66820234,0.0001,2]
[408054747,1773079638575,223.53192779,0.0001,2]
[408054748,1773079640947,500.0,0.0001,2]
[408054749,1773079641491,500.0,0.0001,2]
[408054750,1773079644314,500.0,0.0001,2]
[408054751,1773079644928,500.0,0.0001,2]
[408054752,1773079645426,562.0257416,0.0001,2]
[408054753,1773079660816,500.0,0.0001,2]
[408054754,1773079670917,709.3557087,0.0001,2]
[408054755,1773079681285,300.0,0.00014999,2]
[408054756,1773079741759,300.0,0.00014999,2]
[408054757,1773079745357,150.0,0.00014999,2]
[408054758,1773079763482,150.64,0.00014,2]
[408054759,1773079801151,300.0,0.00014999,2]
[408054760,1773079801177,1200.0,0.00014999,2]
[408054761,1773079805726,165.0,0.00015,2]
[408054771,1773079831834,-500.0,0.00015,30]
[408054772,1773079831844,-500.0,0.00015,30]
[408054773,1773079831854,-500.0,0.00015,30]
[408054774,1773079831863,-500.0,0.00015,30]
[408054775,1773079831872,-500.0,0.00015,30]
[408054776,1773079831885,-500.0,0.00015,30]
[408054777,1773079831895,-500.0,0.00015,30]
[408054778,1773079831905,-500.0,0.00015,30]
[408054779,1773079831913,-500.0,0.00015,30]
[408054780,1773079831923,-500.0,0.00015,30]
[408054781,1773079831932,-500.0,0.00015,30]
[408054782,1773079831941,-500.0,0.00015,30]
[408054783,1773079831950,-500.0,0.00015,30]
[408054784,1773079831959,-500.0,0.00015,30]
[408054785,1773079831967,-500.0,0.00015,30]
[408054786,1773079831977,-500.0,0.00015,30]
[408054787,1773079831985,-500.0,0.00015,30]
[408054789,1773079831994,-500.0,0.00015,30]
[408054791,1773079832004,-500.0,0.00015,30]
[408054793,1773079832013,-500.0,0.00015,30]
[408054795,1773079832022,-500.0,0.00015,30]
[408054796,1773079832031,-500.0,0.00015,30]
[408054798,1773079832040,-500.0,0.00015,30]
[408054800,1773079832049,-500.0,0.00015,30]
[408054802,1773079832057,-500.0,0.00015,30]
[408054804,1773079832066,-500.0,0.00015,30]
[408054806,1773079832077,-500.0,0.00015,30]
[408054808,1773079832087,-500.0,0.00015,30]
[408054810,1773079832096,-500.0,0.00015,30]
[408054812,1773079832106,-500.0,0.00015,30]
[408054814,1773079832115,-500.0,0.00015,30]
[408054816,1773079832125,-500.0,0.00015,30]
[408054818,1773079832134,-500.0,0.00015,30]
[408054820,1773079832144,-500.0,0.00015,30]
[408054822,1773079832158,-500.0,0.00015,30]
[408054824,1773079832167,-500.0,0.00015,30]
[408054826,1773079832176,-500.0,0.00015,30]
[408054828,1773079832187,-500.0,0.00015,30]
[408054830,1773079832196,-500.0,0.00015,30]
[408054832,1773079832206,-500.0,0.00015,30]
[408054833,1773079832215,-500.0,0.00015,30]
[408054834,1773079832225,-500.0,0.00015,30]
[408054835,1773079832234,-500.0,0.00015,30]
[408054836,1773079832243,-500.0,0.00015,30]
[408054837,1773079832252,-500.0,0.00015,30]
[408054838,1773079832261,-520.13924444,0.00015,30]
[408054839,1773079832270,-654.83873266,0.00015,30]
[408054840,1773079832279,-524.61655257,0.00015,30]
[408054841,1773079832288,-500.0,0.00015,30]
[408054842,1773079832297,-500.0,0.00015,30]
[408054843,1773079832306,-500.0,0.00015,30]
[408054844,1773079832315,-500.0,0.00015,30]
[408054845,1773079832325,-500.0,0.00015,30]
[408054846,1773079832334,-500.0,0.00015,30]
[408054847,1773079832344,-500.0,0.00015,30]
[408054848,1773079832354,-856.00555469,0.00015,30]
[408054849,1773079832363,-500.0,0.00015,30]
[408054850,1773079832373,-500.0,0.00015,30]
[408054851,1773079832382,-500.0,0.00015,30]
[408054852,1773079832392,-936.82264414,0.00015,30]
[408054853,1773079832401,-500.0,0.00015,30]
[408054854,1773079832411,-500.0,0.00015,30]
[408054855,1773079832420,-500.0,0.00015,30]
[408054856,1773079832429,-500.0,0.00015,30]
[408054857,1773079832438,-500.0,0.00015,30]
[408054858,1773079832447,-500.0,0.00015,30]
[408054859,1773079832455,-500.0,0.00015,30]
[408054860,1773079832474,-500.0,0.00015,30]
[408054861,1773079832485,-500.0,0.00015,30]
[408054862,1773079832497,-500.0,0.00015,30]
[408054863,1773079832508,-500.0,0.00015,30]
[408054864,1773079832517,-500.0,0.00015,30]
[408054865,1773079832527,-500.0,0.00015,30]
[408054866,1773079832536,-500.0,0.00015,30]
[408054867,1773079832546,-252.0,0.00015095,2]
[408054868,1773079832555,-830.87,0.00015191,2]
[408054869,1773079832564,-4783.28,0.00015471,2]
[408054870,1773079832574,-593.32,0.00015471,2]
[408054871,1773079832583,-1160.4288682,0.000155,2]
[408054872,1773079832594,-830.87,0.00015651,2]
[408054873,1773079832603,-500.0,0.00015695,3]
[408054874,1773079832613,-166.66,0.00015946,2]
[408054875,1773079832622,-150.29651913,0.00016,2]
[408054876,1773079832632,-150.0,0.00016,2]
[408054877,1773079832641,-830.87,0.00016112,2]
[408054878,1773079832650,-229.0,0.00016124,2]
[408054879,1773079832660,-2000.0,0.00016174,2]
[408054880,1773079832670,-1000.0,0.00016199,2]
[408054881,1773079832679,-10000.01880072,0.000162,5]
[408054882,1773079832689,-166.66,0.00016281,2]
[408054883,1773079832699,-281.0,0.00016347,2]
[408054884,1773079832708,-415.65221168,0.0001635,2]
[408054885,1773079832718,-420.0,0.00016416,2]
[408054886,1773079832728,-1680.0,0.00016499,2]
[408054887,1773079832739,-300.0,0.000165,2]
[408054888,1773079832749,-500.0,0.000165,2]
[408054889,1773079832759,-2500.0,0.000165,2]
[408054890,1773079832769,-2500.0,0.000165,2]
[408054891,1773079832779,-2500.0,0.000165,2]
[408054892,1773079832788,-195.0,0.000165,2]
[408054893,1773079832799,-250.0,0.000165,2]
[408054894,1773079832809,-2500.0,0.000165,2]
[408054895,1773079832818,-2500.0,0.000165,2]
[408054896,1773079832828,-418.80293382,0.000165,2]
[408054897,1773079832837,-3524.85067479,0.000165,2]
[408054898,1773079832847,-195.0,0.000165,2]
[408054899,1773079832857,-300.0,0.000165,2]
[408054900,1773079832867,-300.0,0.000165,2]
[408054901,1773079832876,-162.04579583,0.000165,2]
[408054902,1773079832886,-2266.94947817,0.00016566,2]
[408054903,1773079832895,-830.87,0.00016572,2]
[408054904,1773079832905,-166.66,0.00016617,2]
[408054905,1773079832915,-171.87038139,0.000169,2]
[408054906,1773079832925,-166.66,0.00016953,2]
[408054907,1773079832934,-151.0,0.0001699,2]
[408054908,1773079832944,-151.0,0.0001699,2]
[408054909,1773079832954,-151.0,0.0001699,2]
[408054910,1773079832964,-151.0,0.0001699,2]
[408054911,1773079832974,-151.0,0.0001699,2]
[408054912,1773079832984,-151.0,0.0001699,2]
[408054913,1773079832993,-151.0,0.0001699,2]
[408054914,1773079833007,-151.0,0.0001699,2]
[408054915,1773079833018,-151.0,0.0001699,2]
[408054916,1773079833029,-151.0,0.0001699,2]
[408054917,1773079833039,-151.0,0.0001699,2]
[408054918,1773079833049,-151.0,0.0001699,2]
[408054919,1773079833058,-151.0,0.0001699,2]
[408054920,1773079833068,-151.0,0.0001699,2]
[408054921,1773079833079,-151.0,0.0001699,2]
[408054922,1773079833088,-151.0,0.0001699,2]
[408054923,1773079833098,-151.0,0.0001699,2]
[408054924,1773079833108,-151.0,0.0001699,2]
[408054925,1773079833119,-151.0,0.0001699,2]
[408054926,1773079833130,-151.0,0.0001699,2]
[408054927,1773079833140,-151.0,0.0001699,2]
[408054928,1773079833159,-151.0,0.0001699,2]
[408054929,1773079833170,-151.0,0.0001699,2]
[408054930,1773079833180,-151.0,0.0001699,2]
[408054931,1773079833192,-151.0,0.0001699,2]
[408054932,1773079833201,-151.0,0.0001699,2]
[408054933,1773079833211,-151.0,0.0001699,2]
[408054934,1773079833221,-151.0,0.0001699,2]
[408054935,1773079833232,-151.0,0.0001699,2]
[408054936,1773079833242,-151.0,0.0001699,2]
[408054937,1773079833252,-151.0,0.0001699,2]
[408054938,1773079833263,-500.0,0.00016999,2]
[408054939,1773079833273,-500.0,0.00016999,2]
[408054940,1773079833284,-500.0,0.00016999,2]
[408054941,1773079833293,-500.0,0.00016999,2]
[408054942,1773079833303,-500.0,0.00016999,2]
[408054943,1773079833313,-500.0,0.00016999,2]
[408054944,1773079833322,-500.0,0.00016999,2]
[408054945,1773079833332,-500.0,0.00016999,2]
[408054946,1773079833342,-500.0,0.00016999,2]
[408054947,1773079833352,-500.0,0.00016999,2]
[408054948,1773079833361,-500.0,0.00016999,2]
[408054949,1773079833371,-500.0,0.00016999,2]
[408054950,1773079833381,-500.0,0.00016999,2]
[408054951,1773079833390,-500.0,0.00016999,2]
[408054952,1773079833400,-500.0,0.00016999,2]
[408054953,1773079833410,-500.0,0.00016999,2]
[408054954,1773079833419,-500.0,0.00016999,2]
[408054955,1773079833430,-500.0,0.00016999,2]
[408054956,1773079833439,-500.0,0.00016999,2]
[408054957,1773079833449,-500.0,0.00016999,2]
[408054958,1773079833459,-500.0,0.00016999,2]
[408054959,1773079833468,-500.0,0.00016999,2]
[408054960,1773079833478,-500.0,0.00016999,2]
[408054961,1773079833488,-500.0,0.00016999,2]